[Event "LEM Sachsen-Anhalt Open 2024"]
[Site "Merseburg"]
[Date "2024.02.09"]
[Round "3.9"]
[White "Tawilah, Youssef"]
[Black "Noack, Thomas"]
[Result "1-0"]
[ECO "D02"]
[WhiteElo "1541"]
[BlackElo "1941"]
[Annotator "NA RC"]
[PlyCount "99"]
[EventDate "2024.02.01"]
[EventType "swiss"]
[EventCountry "GER"]
[SourceTitle "playchess.com"]
[Source "ChessBase"]
[SourceQuality "1"]
[TimeControl "40/5400+30:1800+30"]

1. d4 {[%emt 0:00:02]} d5 {[%emt 0:00:12]} 2. Nf3 {[%emt 0:00:27]} Nf6 {[%emt 0:00:45]} 3. Bf4 {[%emt 0:00:39]} c5 {[%emt 0:02:37]} 4. e3 {[%emt 0:02:10]} Nc6 {[%emt 0:01:42]} 5. c3 {[%emt 0:02:38]} Qb6 {[%emt 0:02:32]} (5... e6 {feels stronger.}) 6. Qb3 {[%emt 0:02:36]} c4 {[%emt 0:01:23]} 7. Qxb6 {[%emt 0:00:11]} axb6 {[%emt 0:00:10]} 8. Nbd2 {[%emt 0:00:56]} e6 {[%emt 0:03:35]} (8... Bf5 $142) 9. Ne5 {[%emt 0:02:41]} ({White should play} 9. a3 $1 $11) 9... b5 {[%emt 0:01:59]} 10. Be2 {[%emt 0:02:23]} b4 {[%emt 0:03:59]} 11. O-O {[%emt 0:01:43]} bxc3 {[%emt 0:03:01]} 12. bxc3 {[%emt 0:00:02]} Ba3 {[%emt 0:05:56]} 13. Rab1 {[%emt 0:05:01]} Ke7 {[%emt 0:12:11]} 14. e4 {[%emt 0:05:57]} Rd8 {[%emt 0:09:36]} 15. Rfe1 $11 {[%emt 0:15:04]} Kf8 {[%emt 0:08:46]} 16. Bf3 {[%emt 0:14:22]} Ne7 {[%emt 0:06:01]} 17. Bg3 {[%emt 0:09:59]} Ra7 {[%emt 0:08:45]} 18. Ng4 {[%emt 0:12:32]} Nxg4 {[%emt 0:07:32]} 19. Bxg4 {[%emt 0:02:12]} Bd6 {[%emt 0:02:12]} 20. e5 {[%emt 0:03:03]} Bc7 {[%emt 0:01:48]} 21. Rb2 {[%emt 0:00:27]} Ba5 {[%emt 0:02:20]} 22. Nb1 {[%emt 0:01:27]} Bd7 {[%emt 0:00:58]} 23. f4 {[%emt 0:02:57]} g6 {[%emt 0:01:10]} 24. Ree2 {[%emt 0:00:42]} Rda8 {[%emt 0:02:24]} 25. Be1 {[%emt 0:01:51]} Bd8 {[%emt 0:01:53]} 26. Bf3 {[%emt 0:01:49]} Bc6 {[%emt 0:02:45]} 27. g4 {[%emt 0:00:46]} Nc8 {[%emt 0:03:16]} 28. f5 {[%emt 0:02:45]} Bd7 {[%emt 0:00:29]} 29. fxg6 {[%emt 0:01:24]} hxg6 {[%emt 0:01:22]} 30. h4 {[%emt 0:01:05]} Kg7 {[%emt 0:02:25]} 31. Rh2 {[%emt 0:01:56]} g5 {[%emt 0:01:03]} 32. h5 {[%emt 0:00:59]} Kh6 {[%emt 0:00:35]} 33. Bd1 {[%emt 0:01:30]} Be8 {[%emt 0:00:25]} 34. Rhe2 {[%emt 0:00:40]} Nb6 {[%emt 0:00:52]} 35. Rf2 {[%emt 0:01:45]} Nd7 {[%emt 0:00:37]} 36. Kf1 {[%emt 0:01:00]} Nf8 {[%emt 0:00:15]} 37. Bd2 {[%emt 0:00:35]} b5 {[%emt 0:00:25]} 38. Bc1 {[%emt 0:00:29]} Be7 {[%emt 0:00:22]} 39. Bd2 {[%emt 0:00:35]} Rxa2 {[%emt 0:00:07]} 40. Bxg5+ {[%emt 0:00:21]} Bxg5 {[%emt 0:00:10]} 41. Rxa2 {[%emt 0:30:12]} Rb8 {[%emt 0:31:13]} 42. Rab2 {[%emt 0:00:00]} Ra8 {[%emt 0:00:00]} 43. Ra2 {[%emt 0:00:00]} Rb8 {[%emt 0:00:00]} 44. Rfb2 {[%emt 0:00:00]} Nh7 {[%emt 0:00:00]} 45. Ra5 {[%emt 0:00:00]} Bd8 {[%emt 0:00:00]} 46. Ra6 {[%emt 0:00:00]} Ng5 {[%emt 0:00:00]} 47. Kg2 {[%emt 0:00:00]} Ne4 {[%emt 0:00:00]} 48. Bf3 {[%emt 0:00:00]} Ng5 {[%emt 0:00:00]} 49. Bxd5 {[%emt 0:00:00]} Bb6 {[%emt 0:00:00]} 50. Ra8 {[%emt 0:00:00]} 1-0

[Event "LEM Sachsen-Anhalt Open 2024"]
[Site "Merseburg"]
[Date "2024.02.09"]
[Round "3.10"]
[White "Treiber, Marco"]
[Black "Swoboda, Julian"]
[Result "1-0"]
[ECO "E90"]
[WhiteElo "1815"]
[BlackElo "1492"]
[Annotator "NA RC"]
[PlyCount "86"]
[EventDate "2024.02.01"]
[EventType "swiss"]
[EventCountry "GER"]
[SourceTitle "playchess.com"]
[Source "ChessBase"]
[SourceQuality "1"]
[TimeControl "40/5400+30:1800+30"]

1. c4 {[%emt 0:06:17]} Nf6 {[%emt 0:00:18]} 2. Nc3 {[%emt 0:00:19]} g6 {[%emt 0:00:16]} 3. Nf3 {[%emt 0:00:10]} Bg7 {[%emt 0:00:13]} 4. e4 {[%emt 0:01:26]} d6 {[%emt 0:00:17]} 5. d4 {[%emt 0:01:35]} O-O {[%emt 0:00:07]} 6. Be2 {[%emt 0:00:06]} e5 {[%emt 0:00:15]} 7. d5 {[%emt 0:01:11]} Nbd7 {[%emt 0:00:45]} (7... a5 $11 {should be considered.}) 8. Qc2 {[%emt 0:02:15]} a5 {[%emt 0:01:18]} 9. h3 {[%emt 0:01:41]} Nc5 {[%emt 0:00:53]} 10. Be3 {[%emt 0:00:19]} b6 {[%emt 0:00:41]} 11. Nd2 {[%emt 0:01:01]} Ne8 {[%emt 0:02:57]} 12. g4 {[%emt 0:02:09]} f5 {[%emt 0:03:43] E90: King's Indian: Classical: Early deviations and 6 h3.} 13. gxf5 {[%emt 0:01:04]} gxf5 {[%emt 0:00:11]} 14. f3 {[%emt 0:01:48]} (14. h4 $14) 14... f4 {[%emt 0:02:50]} (14... Bh6 $15 15. Bxc5 (15. Bxh6 Qh4+ 16. Kd1 Qxh6 $17) (15. Rg1+ Kh8 $17) 15... bxc5) 15. Bf2 {[%emt 0:01:32]} Qg5 {[%emt 0:02:18]} (15... Nf6 $11) 16. h4 {[%emt 0:04:35]} Qh5 {[%emt 0:01:43]} 17. O-O-O {[%emt 0:02:02]} Rf6 {[%emt 0:02:11]} 18. Rdg1 {[%emt 0:01:08]} Rg6 {[%emt 0:00:49]} 19. Qd1 {[%emt 0:03:37]} Bd7 {[%emt 0:02:00]} 20. Kb1 {[%emt 0:11:24]} Nf6 {[%emt 0:05:11]} 21. Rg5 {[%emt 0:02:40]} Rxg5 {[%emt 0:00:40]} 22. hxg5 {[%emt 0:00:11]} Qxg5 {[%emt 0:00:07]} 23. Bh4 {[%emt 0:00:36]} Qg6 {[%emt 0:01:04]} 24. Rg1 {[%emt 0:03:35]} Qf7 {[%emt 0:01:10]} 25. Nb5 {[%emt 0:00:45]} Bxb5 {[%emt 0:00:43]} 26. cxb5 {[%emt 0:00:08]} Kh8 {[%emt 0:01:16]} 27. Qf1 {[%emt 0:04:10]} Rg8 $11 {[%emt 1:10:04]} 28. Qh3 {[%emt 0:01:50]} Ncd7 {[%emt 0:00:00]} 29. Qh2 {[%emt 0:03:43]} Nh5 {[%emt 0:00:00]} 30. Bf1 {[%emt 0:01:10]} Ndf6 {[%emt 0:00:00]} 31. Bh3 {[%emt 0:01:01]} Bf8 {[%emt 0:02:00]} 32. Rc1 {[%emt 0:02:22]} Rg7 {[%emt 0:00:00]} 33. Bf2 {[%emt 0:01:54]} Ng3 {[%emt 0:00:00]} 34. Be6 {[%emt 0:02:15]} Qh5 {[%emt 0:00:00]} 35. Qxh5 {[%emt 0:02:53]} Nfxh5 {[%emt 0:00:00]} 36. Bxb6 {[%emt 0:01:26]} cxb6 {[%emt 0:00:00]} 37. Rc8 {[%emt 0:00:21]} Rg8 {[%emt 0:00:00]} 38. Bxg8 {[%emt 0:00:17]} Kxg8 {[%emt 0:00:00]} 39. Nc4 {[%emt 0:00:51]} Ne2 {[%emt 0:00:00]} 40. Nxb6 {[%emt 0:02:08]} Nd4 {[%emt 0:00:00]} 41. Nd7 {[%emt 0:30:21]} Nxf3 {[%emt 0:00:00]} 42. Rxf8+ {[%emt 0:00:20]} Kg7 {[%emt 0:00:00]} 43. b6 {[%emt 0:00:30]} Nd2+ {[%emt 0:00:00]} 1-0

[Event "LEM Sachsen-Anhalt Open 2024"]
[Site "Merseburg"]
[Date "2024.02.09"]
[Round "4.3"]
[White "Martemyanov, Mikhail"]
[Black "Winnig, Bernd"]
[Result "1-0"]
[ECO "C10"]
[WhiteElo "1257"]
[BlackElo "1883"]
[Annotator "NA RC"]
[PlyCount "33"]
[EventDate "2024.02.01"]
[EventType "swiss"]
[EventCountry "GER"]
[SourceTitle "playchess.com"]
[Source "ChessBase"]
[SourceQuality "1"]
[TimeControl "40/5400+30:1800+30"]

1. e4 {[%emt 0:00:03]} e6 {[%emt 0:00:05]} 2. d4 {[%emt 0:00:05]} d5 {[%emt 0:00:05]} 3. Nc3 {[%emt 0:00:05]} dxe4 {[%emt 0:00:13]} 4. Nxe4 {[%emt 0:00:08]} Nd7 {[%emt 0:00:04]} 5. Nf3 {[%emt 0:01:27]} Ngf6 {[%emt 0:00:08]} 6. Ng3 {[%emt 0:01:51]} b6 {[%emt 0:02:45]} 7. Bd3 {[%emt 0:05:16]} Bb7 {[%emt 0:00:39]} 8. O-O {[%emt 0:02:03]} Be7 {[%emt 0:01:10]} 9. b3 {[%emt 0:03:36]} O-O {[%emt 0:04:15]} 10. Bb2 {[%emt 0:03:13]} c5 {[%emt 0:01:48]} 11. Re1 {[%emt 0:10:00]} cxd4 {[%emt 0:10:37]} 12. Nxd4 {[%emt 0:02:37]} e5 {[%emt 0:01:31]} 13. Nf3 {[%emt 0:03:09]} Bxf3 {[%emt 0:01:36]} 14. Qxf3 {[%emt 0:00:19]} Qc7 {[%emt 0:01:13]} 15. Nf5 {[%emt 0:05:30]} Bb4 {[%emt 0:03:00] [#]} 16. c3 $18 {[%emt 0:08:08]} Bxc3 {[%emt 0:01:41]} 17. Rac1 {[%emt 0:01:45]} 1-0

[Event "LEM Sachsen-Anhalt Open 2024"]
[Site "Merseburg"]
[Date "2024.02.09"]
[Round "4.4"]
[White "Korte, Markus"]
[Black "Golitsyn, Yuri"]
[Result "1/2-1/2"]
[ECO "B13"]
[WhiteElo "1879"]
[BlackElo "1781"]
[Annotator "NA"]
[PlyCount "69"]
[EventDate "2024.02.01"]
[EventType "swiss"]
[EventCountry "GER"]
[SourceTitle "playchess.com"]
[Source "ChessBase"]
[SourceQuality "1"]
[TimeControl "40/5400+30:1800+30"]

1. d4 {[%emt 0:01:31]} d5 {[%emt 0:00:07]} 2. Bf4 {[%emt 0:01:13]} Nf6 {[%emt 0:00:25]} 3. e3 {[%emt 0:00:29]} c5 {[%emt 0:01:19]} 4. c3 {[%emt 0:00:48]} Nc6 {[%emt 0:01:04]} 5. Nd2 {[%emt 0:01:44]} cxd4 {[%emt 0:00:23]} 6. exd4 {[%emt 0:01:23]} Bg4 {[%emt 0:02:09]} 7. Qb3 {[%emt 0:00:58]} Qc8 {[%emt 0:02:14]} 8. Bd3 {[%emt 0:01:41]} e6 {[%emt 0:00:23]} 9. Ngf3 {[%emt 0:01:11]} Bxf3 {[%emt 0:00:31]} 10. Nxf3 {[%emt 0:00:10]} Be7 {[%emt 0:00:31] B13: Caro-Kann: Exchange Variation and Panov-Botvinnik Attack.} 11. O-O {[%emt 0:01:03]} O-O {[%emt 0:00:42]} 12. Rfe1 {[%emt 0:00:34]} Nh5 {[%emt 0:01:09]} 13. Bd2 {[%emt 0:02:31]} Qc7 {[%emt 0:02:49]} 14. Re3 {[%emt 0:08:42]} Nf4 {[%emt 0:02:09]} 15. Bf1 {[%emt 0:01:42]} Na5 {[%emt 0:01:08]} 16. Qc2 {[%emt 0:02:01]} Nc4 {[%emt 0:01:02]} 17. Bxc4 $11 {[%emt 0:02:03]} dxc4 {[%emt 0:04:47]} 18. Re5 {[%emt 0:03:12]} Nd3 {[%emt 0:02:55]} 19. Rh5 {[%emt 0:10:09]} g6 {[%emt 0:04:46]} 20. Rh3 {[%emt 0:00:40]} Rad8 {[%emt 0:06:27]} 21. Bh6 {[%emt 0:05:18]} Rfe8 {[%emt 0:01:40]} 22. Ne1 {[%emt 0:02:28]} Nxe1 {[%emt 0:03:55]} 23. Rxe1 {[%emt 0:00:12]} Rd5 {[%emt 0:01:25]} 24. Qc1 {[%emt 0:07:27]} Qa5 {[%emt 0:04:28]} 25. a3 {[%emt 0:03:51]} Red8 {[%emt 0:04:19]} 26. Bf4 {[%emt 0:02:22]} Bg5 {[%emt 0:01:16]} 27. Bxg5 {[%emt 0:02:23]} Rxg5 {[%emt 0:00:08]} 28. Qf4 {[%emt 0:02:13]} h5 {[%emt 0:08:48]} 29. Rhe3 {[%emt 0:07:17]} Rf5 {[%emt 0:05:55]} 30. Qh4 {[%emt 0:01:30]} Rd7 {[%emt 0:05:54]} 31. h3 {[%emt 0:00:37]} Qb6 {[%emt 0:02:50]} 32. R3e2 {[%emt 0:05:21]} Rb5 {[%emt 0:01:21]} 33. Qf6 {[%emt 0:01:46]} Qd8 {[%emt 0:02:15]} 34. Qf4 {[%emt 0:00:37]} Qb6 {[%emt 0:01:30]} 35. Qd2 {[%emt 0:04:33]} 1/2-1/2

[Event "LEM Sachsen-Anhalt Open 2024"]
[Site "Merseburg"]
[Date "2024.02.09"]
[Round "4.5"]
[White "Haensel, Mathias"]
[Black "Moser, Axel"]
[Result "0-1"]
[ECO "A03"]
[WhiteElo "1689"]
[BlackElo "2094"]
[Annotator "NA RC"]
[PlyCount "106"]
[EventDate "2024.02.01"]
[EventType "swiss"]
[EventCountry "GER"]
[SourceTitle "playchess.com"]
[Source "ChessBase"]
[SourceQuality "1"]
[TimeControl "40/5400+30:1800+30"]

1. f4 {[%emt 0:00:03]} Nh6 {[%emt 0:00:14]} 2. Nf3 {[%emt 0:00:12]} d5 {[%emt 0:03:53]} 3. e3 {[%emt 0:01:36]} g6 {[%emt 0:00:08]} 4. Be2 {[%emt 0:00:32]} Bg7 {[%emt 0:00:08]} 5. O-O {[%emt 0:00:21]} O-O {[%emt 0:00:14]} 6. a4 {[%emt 0:07:37]} c5 {[%emt 0:00:49]} 7. Na3 {[%emt 0:02:04]} Nc6 {[%emt 0:01:57]} 8. c3 {[%emt 0:02:35]} e5 {[%emt 0:06:27]} 9. d4 {[%emt 0:08:22]} exf4 {[%emt 0:02:55]} 10. dxc5 {[%emt 0:02:52]} Re8 {[%emt 0:10:06]} 11. exf4 {[%emt 0:07:40]} Qe7 {[%emt 0:00:17]} 12. Bb5 {[%emt 0:03:01]} (12. Bd3 $142) 12... Qxc5+ {[%emt 0:01:14]} 13. Kh1 {[%emt 0:04:15]} Bg4 {[%emt 0:02:21]} 14. Nc2 $17 {[%emt 0:02:32]} Nf5 {[%emt 0:00:18]} 15. Qd3 {[%emt 0:06:38]} Re4 {[%emt 0:05:43]} 16. Bd2 {[%emt 0:07:01]} Bxf3 {[%emt 0:03:19]} 17. Qxf3 {[%emt 0:04:43]} Nd6 {[%emt 0:06:25]} 18. b4 {[%emt 0:02:41]} Qb6 {[%emt 0:00:49]} 19. Bd3 {[%emt 0:00:32]} Re7 {[%emt 0:04:37]} 20. Qxd5 {[%emt 0:03:38]} Rd8 {[%emt 0:00:14]} 21. Qf3 {[%emt 0:01:00]} Nc4 {[%emt 0:07:27]} 22. Be1 {[%emt 0:05:15]} Ne3 {[%emt 0:21:55]} 23. a5 {[%emt 0:08:36]} Qc7 {[%emt 0:00:55]} 24. Nxe3 {[%emt 0:05:33]} Rxd3 {[%emt 0:00:09]} 25. Bf2 {[%emt 0:03:25]} Rxc3 {[%emt 0:07:30]} 26. Rac1 {[%emt 0:04:12]} Nxb4 {[%emt 0:08:16]} 27. Rxc3 {[%emt 0:01:54]} Qxc3 {[%emt 0:00:58]} 28. Nd5 {[%emt 0:02:12]} Nxd5 {[%emt 0:01:22]} 29. Qxd5 {[%emt 0:00:09]} Qc6 {[%emt 0:00:56]} 30. Qd2 {[%emt 0:01:11]} Bc3 {[%emt 0:01:28]} 31. Qa2 {[%emt 0:01:05]} Qe6 {[%emt 0:00:40]} 32. Qa3 {[%emt 0:00:46]} Qe2 {[%emt 0:00:50]} 33. Rc1 {[%emt 0:00:57]} Bb2 {[%emt 0:00:49]} 34. Rc8+ {[%emt 0:00:31]} Kg7 {[%emt 0:00:11]} 35. Qc5 {[%emt 0:00:15]} Qd1+ {[%emt 0:01:36]} 36. Bg1 {[%emt 0:00:13]} Qe1 {[%emt 0:00:41]} 37. Qxa7 {[%emt 0:01:02]} h5 {[%emt 0:00:18]} 38. Qc5 {[%emt 0:00:20]} h4 {[%emt 0:00:23]} 39. Qf2 {[%emt 0:00:56]} Re2 {[%emt 0:00:43]} 40. Qc5 {[%emt 0:00:55]} Re7 {[%emt 0:00:33]} 41. Qb6 {[%emt 0:04:09]} Qd2 {[%emt 0:05:49]} 42. Rd8 {[%emt 0:07:29]} Qc3 {[%emt 0:02:01]} 43. h3 {[%emt 0:03:24]} Re1 {[%emt 0:03:21]} 44. Qf2 {[%emt 0:02:00]} Qf6 {[%emt 0:03:18]} 45. Qxe1 {[%emt 0:03:33]} Qxd8 {[%emt 0:00:02]} 46. Bb6 {[%emt 0:00:40]} Qf6 {[%emt 0:00:57]} 47. Qe4 {[%emt 0:01:05]} Kh7 {[%emt 0:01:09]} 48. Bf2 {[%emt 0:01:28]} Bc3 {[%emt 0:00:42]} 49. Qxb7 {[%emt 0:02:26]} Bxa5 {[%emt 0:00:33]} 50. Qe4 {[%emt 0:00:26]} Bc7 {[%emt 0:00:23]} 51. Be3 {[%emt 0:00:38]} Qa1+ {[%emt 0:00:31]} 52. Kh2 {[%emt 0:01:12]} Qe1 {[%emt 0:00:17]} 53. Qe7 {[%emt 0:00:33]} Bxf4+ {[%emt 0:18:09]} 0-1

[Event "LEM Sachsen-Anhalt Open 2024"]
[Site "Merseburg"]
[Date "2024.02.09"]
[Round "4.7"]
[White "Hentzgen, Thomas"]
[Black "Shevchenko, Igor"]
[Result "1/2-1/2"]
[ECO "E71"]
[WhiteElo "1939"]
[BlackElo "2105"]
[Annotator "NA RC"]
[PlyCount "44"]
[EventDate "2024.02.01"]
[EventType "swiss"]
[EventCountry "GER"]
[SourceTitle "playchess.com"]
[Source "ChessBase"]
[SourceQuality "1"]
[TimeControl "40/5400+30:1800+30"]

1. c4 {[%emt 0:00:02]} Nf6 {[%emt 0:00:11]} 2. Nc3 {[%emt 0:00:09]} g6 {[%emt 0:00:08]} 3. e4 {[%emt 0:00:21]} d6 {[%emt 0:00:07]} 4. d4 {[%emt 0:01:22]} Bg7 {[%emt 0:00:17]} 5. h3 {[%emt 0:00:14]} O-O {[%emt 0:00:20]} 6. Bg5 {[%emt 0:00:21]} c5 {[%emt 0:00:40]} 7. d5 {[%emt 0:02:06]} e6 {[%emt 0:00:48]} 8. Bd3 {[%emt 0:01:34]} exd5 {[%emt 0:00:46]} 9. exd5 {[%emt 0:00:39]} Nbd7 {[%emt 0:03:56]} 10. Nf3 {[%emt 0:00:53]} Re8+ {[%emt 0:01:55]} 11. Kf1 {[%emt 0:00:32]} a6 {[%emt 0:01:05]} 12. a4 {[%emt 0:03:29]} Qa5 {[%emt 0:07:41]} 13. g3 {[%emt 0:10:30]} h6 {[%emt 0:05:51]} 14. Bd2 {[%emt 0:05:45]} Qc7 {[%emt 0:02:14]} 15. Kg2 {[%emt 0:00:48]} Ne5 {[%emt 0:05:40]} 16. Nxe5 {[%emt 0:05:29]} dxe5 $16 {[%emt 0:03:40]} (16... Rxe5 $14 {should be considered.} 17. g4 Bd7) 17. a5 {[%emt 0:16:42]} Bd7 {[%emt 0:02:28]} 18. Na4 {[%emt 0:03:02]} Bxa4 {[%emt 0:01:21]} 19. Qxa4 {[%emt 0:01:15]} Nd7 {[%emt 0:01:47]} 20. Qc2 {[%emt 0:03:30]} f5 {[%emt 0:03:36]} 21. f4 {[%emt 0:17:32]} e4 {[%emt 0:01:02]} 22. Be2 {[%emt 0:00:06]} Rad8 {[%emt 0:03:58]} 1/2-1/2

[Event "LEM Sachsen-Anhalt Open 2024"]
[Site "Merseburg"]
[Date "2024.02.09"]
[Round "4.8"]
[White "Dobierzin, Olaf"]
[Black "Tawilah, Youssef"]
[Result "0-1"]
[ECO "C60"]
[WhiteElo "1927"]
[BlackElo "1541"]
[Annotator "NA"]
[PlyCount "82"]
[EventDate "2024.02.01"]
[EventType "swiss"]
[EventCountry "GER"]
[SourceTitle "playchess.com"]
[Source "ChessBase"]
[SourceQuality "1"]
[TimeControl "40/5400+30:1800+30"]

1. e4 {[%emt 0:00:04]} e5 {[%emt 0:00:17]} 2. Nf3 {[%emt 0:00:08]} Nc6 {[%emt 0:00:07]} 3. Bb5 {[%emt 0:00:09]} Nge7 {[%emt 0:01:19]} 4. O-O {[%emt 0:00:47]} Ng6 {[%emt 0:00:05]} 5. c3 {[%emt 0:01:27]} Be7 {[%emt 0:02:53]} 6. d4 {[%emt 0:00:48]} exd4 {[%emt 0:01:17]} 7. cxd4 {[%emt 0:00:10]} O-O {[%emt 0:00:33]} 8. Nc3 {[%emt 0:01:06]} d6 {[%emt 0:00:46]} 9. h3 {[%emt 0:01:49]} ({Better is} 9. Be2 $16) 9... a6 {[%emt 0:03:37]} 10. Bc4 {[%emt 0:04:49]} Rb8 {[%emt 0:04:11]} 11. a4 {[%emt 0:01:21]} Kh8 {[%emt 0:04:11]} 12. Re1 {[%emt 0:11:04]} Nh4 {[%emt 0:07:01]} 13. Nxh4 {[%emt 0:08:19]} Bxh4 {[%emt 0:00:02]} 14. Be3 {[%emt 0:02:58]} f5 {[%emt 0:02:54]} 15. exf5 {[%emt 0:03:19]} Bxf5 {[%emt 0:00:43]} 16. Qd2 $11 {[%emt 0:06:46]} (16. Nd5 {was preferrable.}) 16... Nb4 {[%emt 0:08:42]} 17. Bb3 {[%emt 0:06:02]} d5 {[%emt 0:08:24]} 18. Na2 {[%emt 0:15:26]} Nxa2 {[%emt 0:52:28]} 19. Bxa2 c6 {[%emt 0:00:00]} 20. Bf4 {[%emt 0:04:02]} Rc8 {[%emt 0:00:00]} 21. Rf1 {[%emt 0:10:08]} Qd7 {[%emt 0:00:00]} 22. Bg5 {[%emt 0:08:57]} Bxg5 {[%emt 0:00:00]} 23. Qxg5 {[%emt 0:00:02]} Rf6 {[%emt 0:00:00]} 24. Bb1 {[%emt 0:02:55]} Rcf8 {[%emt 0:00:00]} 25. Bxf5 {[%emt 0:00:29]} Rxf5 {[%emt 0:00:00]} 26. Qg3 {[%emt 0:03:17]} Rf4 {[%emt 0:00:00]} 27. Rad1 {[%emt 0:01:02]} Qe7 {[%emt 0:00:00]} 28. Rd3 {[%emt 0:01:23]} Qb4 {[%emt 0:00:00]} 29. b3 {[%emt 0:02:11]} Rxd4 {[%emt 0:00:00]} 30. Rxd4 {[%emt 0:01:06]} Qxd4 {[%emt 0:00:00]} 31. Re1 {[%emt 0:00:18]} Qf6 {[%emt 0:00:00]} 32. f3 {[%emt 0:00:18]} h6 {[%emt 0:00:00]} 33. Qc7 {[%emt 0:01:29]} Rf7 {[%emt 0:00:00]} 34. Qc8+ {[%emt 0:00:33]} Kh7 {[%emt 0:00:00]} 35. Re8 {[%emt 0:00:15]} h5 {[%emt 0:00:00]} 36. Rh8+ {[%emt 0:00:23]} Kg6 {[%emt 0:00:00]} 37. Re8 {[%emt 0:00:12]} Re7 {[%emt 0:00:00]} 38. Rf8 {[%emt 0:00:21]} Re1+ {[%emt 0:00:31]} 39. Kf2 {[%emt 0:00:29]} Qe5 {[%emt 0:00:18]} 40. Qxb7 {[%emt 0:00:49]} Qe3+ {[%emt 0:00:23]} 41. Kg3 {[%emt 0:30:04]} h4+ {[%emt 0:30:10]} 0-1

[Event "LEM Sachsen-Anhalt Open 2024"]
[Site "Merseburg"]
[Date "2024.02.09"]
[Round "4.9"]
[White "Kroh, Christian"]
[Black "Treiber, Marco"]
[Result "1/2-1/2"]
[ECO "A46"]
[WhiteElo "1680"]
[BlackElo "1815"]
[Annotator "NA"]
[PlyCount "51"]
[EventDate "2024.02.01"]
[EventType "swiss"]
[EventCountry "GER"]
[SourceTitle "playchess.com"]
[Source "ChessBase"]
[SourceQuality "1"]
[TimeControl "40/5400+30:1800+30"]

1. Nf3 {[%emt 0:00:28]} c5 {[%emt 0:00:46]} 2. e3 {[%emt 0:00:36]} Nf6 {[%emt 0:00:39]} 3. d4 {[%emt 0:00:13]} e6 {[%emt 0:01:08]} 4. Be2 {[%emt 0:01:52]} Be7 {[%emt 0:02:12]} 5. O-O {[%emt 0:00:38]} O-O {[%emt 0:00:09]} 6. c4 {[%emt 0:00:37]} cxd4 {[%emt 0:01:34]} 7. Nxd4 {[%emt 0:01:33]} d5 {[%emt 0:02:10]} 8. cxd5 {[%emt 0:02:35]} Nxd5 {[%emt 0:00:57]} 9. a3 {[%emt 0:05:09]} Bd7 {[%emt 0:09:02]} 10. e4 {[%emt 0:05:15]} Nb6 {[%emt 0:02:10]} 11. Nc3 {[%emt 0:01:33]} Nc6 $11 {[%emt 0:03:24]} 12. Bf4 {[%emt 0:19:35]} Nxd4 {[%emt 0:03:59]} 13. Qxd4 {[%emt 0:00:38]} Rc8 {[%emt 0:04:26]} 14. Rfd1 {[%emt 0:09:58]} Bc5 {[%emt 0:07:24]} 15. Qd3 {[%emt 0:03:00]} Qf6 {[%emt 0:02:41]} 16. Qg3 {[%emt 0:04:17]} e5 {[%emt 0:05:49]} 17. Be3 {[%emt 0:05:59]} Bxe3 {[%emt 0:02:39]} 18. Qxe3 {[%emt 0:00:53]} Be6 {[%emt 0:02:17]} 19. Rd6 {[%emt 0:04:13]} Qe7 {[%emt 0:03:54]} 20. Rd2 {[%emt 0:05:49]} Rfd8 {[%emt 0:43:10]} 21. Rad1 {[%emt 0:01:41]} Rxd2 {[%emt 0:00:00]} 22. Rxd2 {[%emt 0:02:42]} Rc7 {[%emt 0:00:00]} 23. h3 {[%emt 0:01:45]} Rd7 {[%emt 0:00:00]} 24. Bb5 {[%emt 0:03:01]} Rxd2 {[%emt 0:00:00]} 25. Qxd2 {[%emt 0:00:01]} a6 {[%emt 0:00:00]} 26. Be2 {[%emt 0:01:46]} 1/2-1/2

[Event "LEM Sachsen-Anhalt Open 2024"]
[Site "Merseburg"]
[Date "2024.02.09"]
[Round "4.10"]
[White "Schaefer, Toni"]
[Black "Urban, Tom"]
[Result "0-1"]
[ECO "E01"]
[WhiteElo "1381"]
[BlackElo "1696"]
[Annotator "NA"]
[PlyCount "98"]
[EventDate "2024.02.01"]
[EventType "swiss"]
[EventCountry "GER"]
[SourceTitle "playchess.com"]
[Source "ChessBase"]
[SourceQuality "1"]
[TimeControl "40/5400+30:1800+30"]

1. d4 {[%emt 0:00:04]} d5 {[%emt 0:00:09]} 2. c4 {[%emt 0:00:07]} c6 {[%emt 0:00:05]} 3. Nf3 {[%emt 0:00:06]} Nf6 {[%emt 0:00:22]} 4. g3 {[%emt 0:00:06]} e6 {[%emt 0:01:11]} 5. Bg2 {[%emt 0:00:06]} Bd6 {[%emt 0:01:07]} 6. O-O {[%emt 0:00:08]} O-O {[%emt 0:00:19]} 7. Nfd2 {[%emt 0:00:04]} e5 {[%emt 0:00:57]} 8. dxe5 {[%emt 0:01:02]} Bxe5 {[%emt 0:00:27]} 9. Nf3 {[%emt 0:00:10]} Bc7 {[%emt 0:01:18]} 10. cxd5 {[%emt 0:00:37]} Qxd5 {[%emt 0:01:21]} 11. Nc3 {[%emt 0:00:16]} Qxd1 {[%emt 0:02:10]} 12. Rxd1 {[%emt 0:00:02]} Bf5 {[%emt 0:01:18]} 13. Nh4 {[%emt 0:01:43]} Be6 {[%emt 0:07:20]} 14. Bg5 {[%emt 0:00:39]} Nbd7 {[%emt 0:02:29]} 15. f4 {[%emt 0:00:39]} h6 {[%emt 0:02:52]} 16. Bxf6 {[%emt 0:00:05]} Nxf6 {[%emt 0:00:11]} 17. f5 {[%emt 0:03:46]} Bb6+ {[%emt 0:03:17]} 18. Kf1 {[%emt 0:00:25]} Bc4 {[%emt 0:01:01]} 19. b3 {[%emt 0:01:50]} Ba6 {[%emt 0:01:18]} 20. Bf3 {[%emt 0:00:38]} Rad8 {[%emt 0:01:55]} 21. Na4 {[%emt 0:00:59]} Bd4 {[%emt 0:07:16]} 22. Rac1 {[%emt 0:00:14]} Bb5 {[%emt 0:01:50]} 23. Nc3 {[%emt 0:00:49]} Bxc3 {[%emt 0:03:02]} 24. Rxd8 {[%emt 0:00:05]} Rxd8 {[%emt 0:00:08]} 25. Rxc3 {[%emt 0:00:05]} Rd1+ {[%emt 0:04:45]} 26. Kf2 {[%emt 0:00:05]} Nd5 {[%emt 0:02:35]} 27. Rc2 {[%emt 0:02:13]} Kf8 {[%emt 0:04:47]} 28. Ng2 {[%emt 0:02:25]} Ke7 {[%emt 0:04:28]} 29. Bxd5 {[%emt 0:00:17]} Rxd5 {[%emt 0:00:49]} 30. e4 {[%emt 0:00:19]} Bd3 {[%emt 0:05:12]} 31. exd5 {[%emt 0:02:26]} Bxc2 {[%emt 0:00:14]} 32. dxc6 {[%emt 0:00:03]} bxc6 {[%emt 0:01:52]} 33. g4 {[%emt 0:00:15]} c5 {[%emt 0:02:51]} 34. Ne3 {[%emt 0:01:10]} Bb1 {[%emt 0:03:54]} 35. Nd5+ {[%emt 0:00:10]} Kd6 {[%emt 0:00:50]} 36. Nc3 {[%emt 0:00:04]} Bd3 {[%emt 0:00:56]} 37. Ke3 {[%emt 0:00:08]} Bf1 {[%emt 0:04:09]} 38. Kf4 {[%emt 0:02:46]} f6 {[%emt 0:09:50]} 39. h4 {[%emt 0:00:16]} a5 {[%emt 0:01:38]} 40. a3 {[%emt 0:00:20]} Bd3 {[%emt 0:00:47]} 41. Ne4+ {[%emt 0:31:42]} Kd5 {[%emt 0:33:24]} 42. Nd2 {[%emt 0:00:44]} Kd4 {[%emt 0:00:55]} 43. g5 {[%emt 0:00:35]} h5 {[%emt 0:00:56]} 44. gxf6 {[%emt 0:10:01]} gxf6 {[%emt 0:00:37]} 45. a4 {[%emt 0:00:30]} Kc3 {[%emt 0:00:53]} 46. Ke3 {[%emt 0:01:01]} Bxf5 {[%emt 0:01:01]} 47. Nc4 {[%emt 0:07:10]} Kb4 {[%emt 0:02:24]} 48. Nd6 {[%emt 0:03:49]} Bg6 {[%emt 0:02:25]} 49. Nb7 {[%emt 0:00:47]} Bf7 {[%emt 0:01:22]} 0-1